[Event "Titled Tuesday Blitz March 29 Late 2022"]
[White "Gatterer, Florian"]
[Black "Burke, Paul"]
[WhiteFideId "811688"]
[BlackFideId "2605767"]
[WhiteElo "2218"]
[BlackElo "1876"]
[Result "1-0"]
[Round "07"]
[TimeControl "180+1"]
[Date "2022.03.30"]
[WhiteClock "0:00:41"]
[BlackClock "0:00:04"]

1. f4 {[%clk 0:02:53]}  e5 {[%clk 0:02:59]} 2. d3 {[%clk 0:02:42]}  d5 {[%clk 0:02:49]} 3. g3 {[%clk 0:02:37]}  Nc6 {[%clk 0:02:47]} 4. Bg2 {[%clk 0:02:37]}  Nf6 {[%clk 0:02:30]} 5. fxe5 {[%clk 0:02:36]}  Nxe5 {[%clk 0:02:24]} 6. Nf3 {[%clk 0:02:36]}  Nxf3+ {[%clk 0:02:12]} 7. Bxf3 {[%clk 0:02:33]}  Bg4 {[%clk 0:02:08]} 8. O-O {[%clk 0:02:26]}  Bxf3 {[%clk 0:02:07]} 9. exf3 {[%clk 0:02:25]}  Be7 {[%clk 0:02:05]} 10. d4 {[%clk 0:02:23]}  O-O {[%clk 0:02:05]} 11. Nc3 {[%clk 0:02:22]}  c6 {[%clk 0:02:04]} 12. Qd3 {[%clk 0:02:20]}  h6 {[%clk 0:02:00]} 13. Bd2 {[%clk 0:02:17]}  Qc7 {[%clk 0:01:59]} 14. Rfe1 {[%clk 0:02:15]}  Bd6 {[%clk 0:01:57]} 15. Kg2 {[%clk 0:02:14]}  Rae8 {[%clk 0:01:55]} 16. Qf5 {[%clk 0:02:11]}  Rxe1 {[%clk 0:01:52]} 17. Rxe1 {[%clk 0:02:09]}  Re8 {[%clk 0:01:36]} 18. Re2 {[%clk 0:01:55]}  Rxe2+ {[%clk 0:01:32]} 19. Nxe2 {[%clk 0:01:55]}  Qd7 {[%clk 0:01:28]} 20. Qd3 {[%clk 0:01:51]}  Qe7 {[%clk 0:01:23]} 21. b3 {[%clk 0:01:46]}  a6 {[%clk 0:01:07]} 22. c4 {[%clk 0:01:45]}  Bb4 {[%clk 0:01:03]} 23. Bf4 {[%clk 0:01:28]}  Bd6 {[%clk 0:01:02]} 24. Be3 {[%clk 0:01:22]}  dxc4 {[%clk 0:00:55]} 25. bxc4 {[%clk 0:01:21]}  Qd7 {[%clk 0:00:48]} 26. Nc3 {[%clk 0:01:18]}  Bb4 {[%clk 0:00:43]} 27. Ne4 {[%clk 0:01:16]}  Nxe4 {[%clk 0:00:42]} 28. Qxe4 {[%clk 0:01:16]}  Qe7 {[%clk 0:00:40]} 29. Qd3 {[%clk 0:01:11]}  a5 {[%clk 0:00:37]} 30. d5 {[%clk 0:01:11]}  cxd5 {[%clk 0:00:35]} 31. cxd5 {[%clk 0:01:12]}  Qd6 {[%clk 0:00:32]} 32. Bf4 {[%clk 0:01:11]}  Qd7 {[%clk 0:00:29]} 33. d6 {[%clk 0:01:11]}  g5 {[%clk 0:00:27]} 34. Be5 {[%clk 0:01:08]}  b6 {[%clk 0:00:21]} 35. h4 {[%clk 0:01:01]}  gxh4 {[%clk 0:00:18]} 36. gxh4 {[%clk 0:01:02]}  Bc5 {[%clk 0:00:13]} 37. Bf4 {[%clk 0:01:01]}  Qe6 {[%clk 0:00:05]} 38. d7 {[%clk 0:00:44]}  Qxa2+ {[%clk 0:00:05]} 39. Kh3 {[%clk 0:00:40]}  Qe6+ {[%clk 0:00:04]} 40. Kg3 {[%clk 0:00:41]} 1-0


[Site "https://www.chess.com"]

[Event "Titled Tuesday Blitz March 29 Late 2022"]
[White "Gauri, Shankar"]
[Black "Shton, Roman"]
[WhiteFideId "5041350"]
[BlackFideId "14137461"]
[WhiteElo "2240"]
[BlackElo "2013"]
[Result "1-0"]
[Round "07"]
[TimeControl "180+1"]
[Date "2022.03.30"]
[WhiteClock "0:00:33"]
[BlackClock "0:00:01"]

1. c4 {[%clk 0:03:00]}  b6 {[%clk 0:02:56]} 2. Nc3 {[%clk 0:02:58]}  Bb7 {[%clk 0:02:56]} 3. d4 {[%clk 0:02:59]}  e6 {[%clk 0:02:56]} 4. a3 {[%clk 0:02:55]}  f5 {[%clk 0:02:52]} 5. Nf3 {[%clk 0:02:54]}  Nf6 {[%clk 0:02:51]} 6. g3 {[%clk 0:02:54]}  Be7 {[%clk 0:02:47]} 7. Bg2 {[%clk 0:02:53]}  O-O {[%clk 0:02:48]} 8. O-O {[%clk 0:02:53]}  d6 {[%clk 0:02:48]} 9. d5 {[%clk 0:02:47]}  e5 {[%clk 0:02:45]} 10. Ng5 {[%clk 0:02:28]}  Bc8 {[%clk 0:02:43]} 11. e4 {[%clk 0:02:13]}  h6 {[%clk 0:02:40]} 12. Ne6 {[%clk 0:02:13]}  Bxe6 {[%clk 0:02:39]} 13. dxe6 {[%clk 0:02:13]}  f4 {[%clk 0:02:30]} 14. gxf4 {[%clk 0:02:13]}  exf4 {[%clk 0:02:26]} 15. e5 {[%clk 0:02:11]}  Nh7 {[%clk 0:01:52]} 16. Bxa8 {[%clk 0:02:04]}  c6 {[%clk 0:01:52]} 17. exd6 {[%clk 0:01:55]}  Bxd6 {[%clk 0:01:49]} 18. Ne4 {[%clk 0:01:55]}  f3 {[%clk 0:01:38]} 19. Qxd6 {[%clk 0:01:54]}  Qh4 {[%clk 0:01:31]} 20. e7 {[%clk 0:01:45]}  Re8 {[%clk 0:01:09]} 21. Qe6+ {[%clk 0:01:26]}  Kh8 {[%clk 0:01:09]} 22. Kh1 {[%clk 0:01:13]}  Na6 {[%clk 0:00:41]} 23. Bxc6 {[%clk 0:01:06]}  Nc7 {[%clk 0:00:41]} 24. Qd7 {[%clk 0:00:49]}  Nf6 {[%clk 0:00:12]} 25. Nxf6 {[%clk 0:00:45]}  Qxf6 {[%clk 0:00:13]} 26. Qxc7 {[%clk 0:00:44]}  Rxe7 {[%clk 0:00:12]} 27. Qd8+ {[%clk 0:00:40]}  Kh7 {[%clk 0:00:12]} 28. Be3 {[%clk 0:00:38]}  Qg6 {[%clk 0:00:11]} 29. Bxf3 {[%clk 0:00:38]}  Rf7 {[%clk 0:00:11]} 30. Rg1 {[%clk 0:00:36]}  Qf5 {[%clk 0:00:04]} 31. Rg3 {[%clk 0:00:36]}  Rf8 {[%clk 0:00:01]} 32. Qd4 {[%clk 0:00:33]}  Rf6 {[%clk 0:00:01]} 33. Be4 {[%clk 0:00:33]} 1-0


[Site "https://www.chess.com"]

[Event "Titled Tuesday Blitz March 29 Late 2022"]
[White "Guz, Ari"]
[Black "Buchenau, Frank"]
[WhiteFideId "2825759"]
[BlackFideId "4604350"]
[WhiteElo "1913"]
[BlackElo "2193"]
[Result "1-0"]
[Round "07"]
[TimeControl "180+1"]
[Date "2022.03.29"]
[WhiteClock "0:02:16"]
[BlackClock "0:01:28"]

1. Nf3 {[%clk 0:03:00]}  Nf6 {[%clk 0:02:59]} 2. b3 {[%clk 0:03:00]}  d5 {[%clk 0:02:55]} 3. Bb2 {[%clk 0:02:59]}  Bg4 {[%clk 0:02:54]} 4. e3 {[%clk 0:02:59]}  Bxf3 {[%clk 0:02:48]} 5. Qxf3 {[%clk 0:02:58]}  Nc6 {[%clk 0:02:40]} 6. d4 {[%clk 0:02:57]}  e6 {[%clk 0:02:33]} 7. Nd2 {[%clk 0:02:55]}  Bb4 {[%clk 0:02:30]} 8. c3 {[%clk 0:02:51]}  Be7 {[%clk 0:02:25]} 9. Bd3 {[%clk 0:02:49]}  e5 {[%clk 0:02:24]} 10. Qe2 {[%clk 0:02:42]}  O-O {[%clk 0:02:22]} 11. O-O {[%clk 0:02:41]}  e4 {[%clk 0:02:12]} 12. Bc2 {[%clk 0:02:41]}  Nb8 {[%clk 0:02:00]} 13. c4 {[%clk 0:02:33]}  c6 {[%clk 0:02:00]} 14. f3 {[%clk 0:02:34]}  exf3 {[%clk 0:01:58]} 15. Qxf3 {[%clk 0:02:34]}  Bb4 {[%clk 0:01:53]} 16. Rad1 {[%clk 0:02:28]}  Re8 {[%clk 0:01:52]} 17. a3 {[%clk 0:02:20]}  Ba5 {[%clk 0:01:47]} 18. b4 {[%clk 0:02:19]}  Bc7 {[%clk 0:01:46]} 19. e4 {[%clk 0:02:20]}  dxe4 {[%clk 0:01:36]} 20. Nxe4 {[%clk 0:02:19]}  Nbd7 {[%clk 0:01:36]} 21. d5 {[%clk 0:02:19]}  Nxe4 {[%clk 0:01:28]} 22. Qxf7+ {[%clk 0:02:15]}  Kh8 {[%clk 0:01:28]} 23. Qxg7# {[%clk 0:02:16]} 1-0


[Site "https://www.chess.com"]

[Event "Titled Tuesday Blitz March 29 Late 2022"]
[White "Hnydiuk, Aleksander"]
[Black "Kosteniuk, Alexandra"]
[WhiteFideId "1109057"]
[BlackFideId "4128125"]
[WhiteElo "2374"]
[BlackElo "2469"]
[Result "0-1"]
[Round "07"]
[TimeControl "180+1"]
[Date "2022.03.29"]
[WhiteClock "0:00:13"]
[BlackClock "0:00:31"]

1. Nf3 {[%clk 0:03:00]}  Nf6 {[%clk 0:02:59]} 2. c4 {[%clk 0:03:00]}  e6 {[%clk 0:02:59]} 3. g3 {[%clk 0:03:01]}  d5 {[%clk 0:02:59]} 4. d4 {[%clk 0:03:01]}  dxc4 {[%clk 0:02:58]} 5. Bg2 {[%clk 0:03:02]}  Nc6 {[%clk 0:02:59]} 6. Qa4 {[%clk 0:02:59]}  Bb4+ {[%clk 0:02:58]} 7. Bd2 {[%clk 0:02:59]}  Bd6 {[%clk 0:02:58]} 8. Na3 {[%clk 0:02:59]}  Rb8 {[%clk 0:02:55]} 9. Nxc4 {[%clk 0:02:56]}  b5 {[%clk 0:02:51]} 10. Nxd6+ {[%clk 0:02:55]}  cxd6 {[%clk 0:02:51]} 11. Qa3 {[%clk 0:02:38]}  O-O {[%clk 0:02:44]} 12. O-O {[%clk 0:02:37]}  Bb7 {[%clk 0:02:37]} 13. Rfc1 {[%clk 0:02:33]}  a5 {[%clk 0:02:25]} 14. Bf4 {[%clk 0:02:19]}  b4 {[%clk 0:02:23]} 15. Qa4 {[%clk 0:02:19]}  Ne7 {[%clk 0:02:18]} 16. a3 {[%clk 0:02:07]}  Qb6 {[%clk 0:01:52]} 17. axb4 {[%clk 0:02:04]}  axb4 {[%clk 0:01:47]} 18. Qa7 {[%clk 0:02:02]}  Bxf3 {[%clk 0:01:37]} 19. Bxf3 {[%clk 0:02:00]}  Ned5 {[%clk 0:01:37]} 20. Bd2 {[%clk 0:01:49]}  b3 {[%clk 0:01:35]} 21. Qxb6 {[%clk 0:01:43]}  Rxb6 {[%clk 0:01:33]} 22. Ra7 {[%clk 0:01:42]}  h6 {[%clk 0:01:25]} 23. e4 {[%clk 0:01:36]}  Nb4 {[%clk 0:01:25]} 24. Rcc7 {[%clk 0:01:29]}  Nd3 {[%clk 0:01:25]} 25. Bc3 {[%clk 0:01:24]}  d5 {[%clk 0:01:22]} 26. e5 {[%clk 0:01:12]}  Ne4 {[%clk 0:01:09]} 27. Bxe4 {[%clk 0:01:00]}  dxe4 {[%clk 0:01:09]} 28. Kf1 {[%clk 0:00:57]}  g5 {[%clk 0:01:06]} 29. Ke2 {[%clk 0:00:54]}  Nb4 {[%clk 0:01:00]} 30. Bxb4 {[%clk 0:00:53]}  Rxb4 {[%clk 0:01:00]} 31. Ke3 {[%clk 0:00:51]}  Kg7 {[%clk 0:00:49]} 32. Rab7 {[%clk 0:00:51]}  Rxb7 {[%clk 0:00:44]} 33. Rxb7 {[%clk 0:00:52]}  Rc8 {[%clk 0:00:44]} 34. Rxb3 {[%clk 0:00:52]}  Rc2 {[%clk 0:00:40]} 35. Rb7 {[%clk 0:00:51]}  Kg6 {[%clk 0:00:41]} 36. h3 {[%clk 0:00:48]}  h5 {[%clk 0:00:40]} 37. Rb6 {[%clk 0:00:43]}  Kf5 {[%clk 0:00:38]} 38. Rb7 {[%clk 0:00:37]}  Kg6 {[%clk 0:00:38]} 39. g4 {[%clk 0:00:31]}  h4 {[%clk 0:00:38]} 40. Rb6 {[%clk 0:00:29]}  Kg7 {[%clk 0:00:38]} 41. b4 {[%clk 0:00:27]}  Rc3+ {[%clk 0:00:37]} 42. Kxe4 {[%clk 0:00:26]}  Rxh3 {[%clk 0:00:38]} 43. d5 {[%clk 0:00:21]}  exd5+ {[%clk 0:00:37]} 44. Kxd5 {[%clk 0:00:22]}  Rd3+ {[%clk 0:00:37]} 45. Ke4 {[%clk 0:00:22]}  Rd2 {[%clk 0:00:37]} 46. Ke3 {[%clk 0:00:21]}  Rb2 {[%clk 0:00:37]} 47. Rb7 {[%clk 0:00:20]}  h3 {[%clk 0:00:33]} 48. Rc7 {[%clk 0:00:15]}  Rb1 {[%clk 0:00:31]} 49. e6 {[%clk 0:00:15]}  h2 {[%clk 0:00:31]} 50. e7 {[%clk 0:00:13]}  h1=Q {[%clk 0:00:31]} 0-1


[Site "https://www.chess.com"]

[Event "Titled Tuesday Blitz March 29 Late 2022"]
[White "Ibarra Jerez, Jose Carlos"]
[Black "Petrovic, Aleksa"]
[WhiteFideId "2226332"]
[BlackFideId "967629"]
[WhiteElo "2626"]
[BlackElo "2245"]
[Result "1-0"]
[Round "07"]
[TimeControl "180+1"]
[Date "2022.03.29"]
[WhiteClock "0:00:59"]
[BlackClock "0:00:04"]

1. e4 {[%clk 0:03:00]}  c5 {[%clk 0:02:58]} 2. Nc3 {[%clk 0:03:00]}  Nc6 {[%clk 0:02:55]} 3. Nge2 {[%clk 0:03:00]}  Nf6 {[%clk 0:02:52]} 4. d4 {[%clk 0:03:00]}  cxd4 {[%clk 0:02:52]} 5. Nxd4 {[%clk 0:03:00]}  e5 {[%clk 0:02:52]} 6. Ndb5 {[%clk 0:03:00]}  h6 {[%clk 0:02:53]} 7. Nd6+ {[%clk 0:02:56]}  Bxd6 {[%clk 0:02:52]} 8. Qxd6 {[%clk 0:02:57]}  Qe7 {[%clk 0:02:53]} 9. Qxe7+ {[%clk 0:02:55]}  Kxe7 {[%clk 0:02:54]} 10. b3 {[%clk 0:02:47]}  d6 {[%clk 0:02:44]} 11. Ba3 {[%clk 0:02:45]}  Be6 {[%clk 0:02:17]} 12. O-O-O {[%clk 0:02:45]}  Rhd8 {[%clk 0:02:03]} 13. Nd5+ {[%clk 0:02:31]}  Bxd5 {[%clk 0:01:59]} 14. exd5 {[%clk 0:02:32]}  Nd4 {[%clk 0:01:56]} 15. c3 {[%clk 0:02:26]}  Rac8 {[%clk 0:01:45]} 16. Kb2 {[%clk 0:02:25]}  Nf5 {[%clk 0:01:36]} 17. g3 {[%clk 0:02:01]}  Kf8 {[%clk 0:01:05]} 18. Bh3 {[%clk 0:01:59]}  g6 {[%clk 0:00:54]} 19. Rhe1 {[%clk 0:01:58]}  Kg7 {[%clk 0:00:40]} 20. Bb4 {[%clk 0:01:40]}  Rc7 {[%clk 0:00:37]} 21. c4 {[%clk 0:01:38]}  b6 {[%clk 0:00:29]} 22. f4 {[%clk 0:01:31]}  exf4 {[%clk 0:00:25]} 23. Bc3 {[%clk 0:01:11]}  f3 {[%clk 0:00:20]} 24. Rd3 {[%clk 0:01:06]}  f2 {[%clk 0:00:16]} 25. Rf1 {[%clk 0:01:06]}  Ne7 {[%clk 0:00:05]} 26. Rxf2 {[%clk 0:01:04]}  Ng8 {[%clk 0:00:05]} 27. Rdf3 {[%clk 0:01:04]}  Re7 {[%clk 0:00:04]} 28. Rxf6 {[%clk 0:01:03]}  Nxf6 {[%clk 0:00:04]} 29. Bxf6+ {[%clk 0:01:03]}  Kf8 {[%clk 0:00:05]} 30. Bxe7+ {[%clk 0:01:03]}  Kxe7 {[%clk 0:00:06]} 31. Kc3 {[%clk 0:01:02]}  f5 {[%clk 0:00:05]} 32. Re2+ {[%clk 0:00:59]}  Kf7 {[%clk 0:00:05]} 33. Re6 {[%clk 0:00:59]}  Rd7 {[%clk 0:00:04]} 34. Kd4 {[%clk 0:00:59]} 1-0


[Site "https://www.chess.com"]

[Event "Titled Tuesday Blitz March 29 Late 2022"]
[White "Ilyasli, Ughur"]
[Black "Vifleemskaia, Svetlana"]
[WhiteFideId "13416197"]
[BlackFideId "4129490"]
[WhiteElo "2045"]
[BlackElo "1901"]
[Result "1-0"]
[Round "07"]
[TimeControl "180+1"]
[Date "2022.03.30"]
[WhiteClock "0:01:09"]
[BlackClock "0:00:09"]

1. d4 {[%clk 0:03:00]}  Nf6 {[%clk 0:02:59]} 2. c4 {[%clk 0:03:01]}  e6 {[%clk 0:02:59]} 3. Nc3 {[%clk 0:03:00]}  Bb4 {[%clk 0:02:59]} 4. Qb3 {[%clk 0:03:01]}  a5 {[%clk 0:02:59]} 5. a3 {[%clk 0:02:56]}  Bxc3+ {[%clk 0:02:57]} 6. Qxc3 {[%clk 0:02:57]}  d5 {[%clk 0:02:53]} 7. Nf3 {[%clk 0:02:55]}  Ne4 {[%clk 0:02:53]} 8. Qc2 {[%clk 0:02:54]}  O-O {[%clk 0:02:47]} 9. e3 {[%clk 0:02:54]}  c6 {[%clk 0:02:47]} 10. Bd3 {[%clk 0:02:53]}  f5 {[%clk 0:02:47]} 11. O-O {[%clk 0:02:39]}  Nd7 {[%clk 0:02:47]} 12. b3 {[%clk 0:02:21]}  g5 {[%clk 0:02:39]} 13. Bb2 {[%clk 0:02:15]}  g4 {[%clk 0:02:37]} 14. Ne5 {[%clk 0:02:11]}  Nxe5 {[%clk 0:02:36]} 15. dxe5 {[%clk 0:02:12]}  Bd7 {[%clk 0:02:33]} 16. f3 {[%clk 0:02:08]}  gxf3 {[%clk 0:02:28]} 17. gxf3 {[%clk 0:02:06]}  Nc5 {[%clk 0:02:28]} 18. Kh1 {[%clk 0:02:00]}  Qh4 {[%clk 0:02:17]} 19. Be2 {[%clk 0:01:50]}  f4 {[%clk 0:02:13]} 20. cxd5 {[%clk 0:01:47]}  b6 {[%clk 0:02:00]} 21. b4 {[%clk 0:01:36]}  axb4 {[%clk 0:01:57]} 22. axb4 {[%clk 0:01:37]}  Rxa1 {[%clk 0:01:56]} 23. Rxa1 {[%clk 0:01:38]}  fxe3 {[%clk 0:00:45]} 24. bxc5 {[%clk 0:01:34]}  Kf7 {[%clk 0:00:40]} 25. Ra7 {[%clk 0:01:29]}  Qe1+ {[%clk 0:00:36]} 26. Kg2 {[%clk 0:01:20]}  Rg8+ {[%clk 0:00:16]} 27. Kh3 {[%clk 0:01:19]}  Qg1 {[%clk 0:00:10]} 28. Qxh7+ {[%clk 0:01:10]}  Rg7 {[%clk 0:00:09]} 29. Rxd7+ {[%clk 0:01:09]} 1-0


[Site "https://www.chess.com"]

[Event "Titled Tuesday Blitz March 29 Late 2022"]
[White "Janaszak, Dawid"]
[Black "Sapunov, Evgeny"]
[WhiteFideId "1119206"]
[BlackFideId "4126661"]
[WhiteElo "2199"]
[BlackElo "2470"]
[Result "0-1"]
[Round "07"]
[TimeControl "180+1"]
[Date "2022.03.29"]
[WhiteClock "0:00:01"]
[BlackClock "0:00:19"]

1. e4 {[%clk 0:03:00]}  g6 {[%clk 0:02:55]} 2. Nc3 {[%clk 0:03:00]}  Bg7 {[%clk 0:02:55]} 3. Bc4 {[%clk 0:02:56]}  c5 {[%clk 0:02:54]} 4. h4 {[%clk 0:02:55]}  h5 {[%clk 0:02:53]} 5. Qf3 {[%clk 0:02:55]}  e6 {[%clk 0:02:51]} 6. d4 {[%clk 0:02:55]}  cxd4 {[%clk 0:02:46]} 7. Nb5 {[%clk 0:02:55]}  d6 {[%clk 0:02:39]} 8. Bf4 {[%clk 0:02:54]}  Be5 {[%clk 0:02:37]} 9. Bxe5 {[%clk 0:02:55]}  dxe5 {[%clk 0:02:37]} 10. Qa3 {[%clk 0:02:55]}  Ne7 {[%clk 0:02:30]} 11. Nd6+ {[%clk 0:02:55]}  Kf8 {[%clk 0:02:29]} 12. Nh3 {[%clk 0:02:54]}  Kg7 {[%clk 0:02:11]} 13. O-O {[%clk 0:02:42]}  Rf8 {[%clk 0:02:00]} 14. f4 {[%clk 0:02:37]}  Nbc6 {[%clk 0:02:00]} 15. Ng5 {[%clk 0:02:24]}  f6 {[%clk 0:01:55]} 16. Nxc8 {[%clk 0:01:53]}  fxg5 {[%clk 0:01:54]} 17. Nxe7 {[%clk 0:01:50]}  Qxe7 {[%clk 0:01:48]} 18. Qxe7+ {[%clk 0:01:50]}  Nxe7 {[%clk 0:01:48]} 19. fxe5 {[%clk 0:01:43]}  gxh4 {[%clk 0:01:42]} 20. Bxe6 {[%clk 0:01:43]}  Nc6 {[%clk 0:01:43]} 21. Bd5 {[%clk 0:01:40]}  Nxe5 {[%clk 0:01:41]} 22. Rad1 {[%clk 0:01:23]}  Rac8 {[%clk 0:01:32]} 23. Rxf8 {[%clk 0:01:15]}  Kxf8 {[%clk 0:01:32]} 24. Rd2 {[%clk 0:01:02]}  b6 {[%clk 0:01:30]} 25. Bb3 {[%clk 0:00:56]}  Rd8 {[%clk 0:01:16]} 26. Kh2 {[%clk 0:00:50]}  Ke7 {[%clk 0:01:12]} 27. Bd5 {[%clk 0:00:41]}  Rc8 {[%clk 0:01:07]} 28. Bb3 {[%clk 0:00:40]}  Rd8 {[%clk 0:01:04]} 29. Bd5 {[%clk 0:00:40]}  g5 {[%clk 0:00:59]} 30. Rxd4 {[%clk 0:00:39]}  g4 {[%clk 0:00:57]} 31. Ra4 {[%clk 0:00:38]}  a5 {[%clk 0:00:55]} 32. b4 {[%clk 0:00:39]}  axb4 {[%clk 0:00:55]} 33. Rxb4 {[%clk 0:00:40]}  Rd6 {[%clk 0:00:55]} 34. c4 {[%clk 0:00:36]}  Rf6 {[%clk 0:00:55]} 35. a4 {[%clk 0:00:30]}  Kd8 {[%clk 0:00:49]} 36. Rb2 {[%clk 0:00:21]}  Rf1 {[%clk 0:00:42]} 37. g3 {[%clk 0:00:15]}  h3 {[%clk 0:00:40]} 38. Rb3 {[%clk 0:00:07]}  Kc7 {[%clk 0:00:33]} 39. c5 {[%clk 0:00:03]}  bxc5 {[%clk 0:00:31]} 40. a5 {[%clk 0:00:03]}  Nf3+ {[%clk 0:00:21]} 41. Rxf3 {[%clk 0:00:02]}  Rxf3 {[%clk 0:00:22]} 42. a6 {[%clk 0:00:02]}  Rf2+ {[%clk 0:00:21]} 43. Kg1 {[%clk 0:00:01]}  Rg2+ {[%clk 0:00:20]} 44. Kh1 {[%clk 0:00:01]}  Kb6 {[%clk 0:00:19]} 0-1


[Site "https://www.chess.com"]

[Event "Titled Tuesday Blitz March 29 Late 2022"]
[White "Jarocka, Liwia"]
[Black "Le Goff, Ronan"]
[WhiteFideId "21807558"]
[BlackFideId "612073"]
[WhiteElo "1896"]
[BlackElo "2276"]
[Result "1-0"]
[Round "07"]
[TimeControl "180+1"]
[Date "2022.03.30"]
[WhiteClock "0:01:16"]
[BlackClock "0:00:46"]

1. c4 {[%clk 0:03:00]}  g6 {[%clk 0:03:00]} 2. Nf3 {[%clk 0:03:01]}  Bg7 {[%clk 0:02:49]} 3. Nc3 {[%clk 0:03:01]}  Nf6 {[%clk 0:02:47]} 4. g3 {[%clk 0:03:00]}  O-O {[%clk 0:02:47]} 5. Bg2 {[%clk 0:03:01]}  c6 {[%clk 0:02:47]} 6. O-O {[%clk 0:03:01]}  d5 {[%clk 0:02:48]} 7. cxd5 {[%clk 0:03:01]}  cxd5 {[%clk 0:02:41]} 8. d4 {[%clk 0:03:02]}  Nc6 {[%clk 0:02:40]} 9. Ne5 {[%clk 0:03:02]}  Ng4 {[%clk 0:02:39]} 10. Nxc6 {[%clk 0:02:37]}  bxc6 {[%clk 0:02:40]} 11. h3 {[%clk 0:02:35]}  Nh6 {[%clk 0:02:39]} 12. Bf4 {[%clk 0:02:34]}  Nf5 {[%clk 0:02:37]} 13. e3 {[%clk 0:02:28]}  f6 {[%clk 0:02:21]} 14. g4 {[%clk 0:02:27]}  Nh4 {[%clk 0:02:20]} 15. Bh1 {[%clk 0:02:27]}  g5 {[%clk 0:02:20]} 16. Bg3 {[%clk 0:02:27]}  Ng6 {[%clk 0:02:20]} 17. Rc1 {[%clk 0:02:27]}  e5 {[%clk 0:02:14]} 18. dxe5 {[%clk 0:02:18]}  fxe5 {[%clk 0:02:13]} 19. Nxd5 {[%clk 0:02:16]}  Be6 {[%clk 0:01:58]} 20. Nc3 {[%clk 0:02:13]}  Qb6 {[%clk 0:01:55]} 21. Na4 {[%clk 0:02:05]}  Qb5 {[%clk 0:01:45]} 22. b3 {[%clk 0:02:05]}  Rad8 {[%clk 0:01:44]} 23. Qc2 {[%clk 0:02:04]}  Bd5 {[%clk 0:01:44]} 24. Qc5 {[%clk 0:01:58]}  Bxh1 {[%clk 0:01:37]} 25. Kxh1 {[%clk 0:01:57]}  Qe2 {[%clk 0:01:35]} 26. Qc4+ {[%clk 0:01:52]}  Qxc4 {[%clk 0:01:34]} 27. Rxc4 {[%clk 0:01:53]}  Rd2 {[%clk 0:01:35]} 28. a3 {[%clk 0:01:46]}  Rd3 {[%clk 0:01:27]} 29. Nc5 {[%clk 0:01:44]}  Rxe3 {[%clk 0:01:26]} 30. fxe3 {[%clk 0:01:40]}  Rxf1+ {[%clk 0:01:25]} 31. Kg2 {[%clk 0:01:41]}  Rb1 {[%clk 0:01:24]} 32. Rc2 {[%clk 0:01:35]}  Bf8 {[%clk 0:01:22]} 33. b4 {[%clk 0:01:30]}  Ra1 {[%clk 0:01:22]} 34. Ne6 {[%clk 0:01:26]}  Rxa3 {[%clk 0:01:18]} 35. Rxc6 {[%clk 0:01:22]}  Rxe3 {[%clk 0:01:14]} 36. Rc8 {[%clk 0:01:17]}  h6 {[%clk 0:01:01]} 37. Bf2 {[%clk 0:01:16]}  Re2 {[%clk 0:00:55]} 38. Kf1 {[%clk 0:01:16]}  Rxf2+ {[%clk 0:00:45]} 39. Kxf2 {[%clk 0:01:16]}  Kf7 {[%clk 0:00:46]} 40. Nxf8 {[%clk 0:01:15]}  Nxf8 {[%clk 0:00:47]} 41. Rc7+ {[%clk 0:01:15]}  Ke6 {[%clk 0:00:44]} 42. Rxa7 {[%clk 0:01:16]}  Nd7 {[%clk 0:00:44]} 43. Ke3 {[%clk 0:01:13]}  Nf6 {[%clk 0:00:42]} 44. Ra6+ {[%clk 0:01:12]}  Ke7 {[%clk 0:00:42]} 45. Rxf6 {[%clk 0:01:12]}  Kxf6 {[%clk 0:00:42]} 46. Ke4 {[%clk 0:01:13]}  Ke6 {[%clk 0:00:42]} 47. b5 {[%clk 0:01:13]}  Kd6 {[%clk 0:00:43]} 48. b6 {[%clk 0:01:13]}  Kc6 {[%clk 0:00:43]} 49. Kxe5 {[%clk 0:01:13]}  Kxb6 {[%clk 0:00:44]} 50. Kf6 {[%clk 0:01:14]}  Kc6 {[%clk 0:00:44]} 51. Kg6 {[%clk 0:01:15]}  Kd6 {[%clk 0:00:45]} 52. Kxh6 {[%clk 0:01:15]}  Ke6 {[%clk 0:00:46]} 53. Kxg5 {[%clk 0:01:16]} 1-0


[Site "https://www.chess.com"]